fUST/lending_fUST_20240726
["ID","MTS","AMOUNT","RATE_DAILY","PERIOD"]
[333194673,1721933442739,-507.9968983,0.00013698,2]
[333194674,1721933442748,-602.29061153,0.00013698,2]
[333194675,1721933442758,-500.0,0.00013698,2]
[333194676,1721933442767,-500.0,0.00013698,2]
[333194677,1721933442776,-500.0,0.00013698,2]
[333194678,1721933442786,-502.23438961,0.00013698,2]
[333194679,1721933442796,-558.54,0.00013698,2]
[333194680,1721933442805,-511.05,0.00013698,2]
[333194681,1721933442815,-500.0,0.00013698,2]
[333194682,1721933442824,-500.0,0.00013698,2]
[333194683,1721933442834,-604.16,0.00013698,2]
[333194684,1721933442844,-509.83240982,0.00013698,2]
[333194685,1721933442853,-772.92,0.00013698,2]
[333194686,1721933442863,-500.0,0.00013698,2]
[333194687,1721933442872,-500.0,0.00013698,2]
[333194688,1721933442882,-636.05,0.00013698,2]
[333194689,1721933442891,-500.0,0.00013698,2]
[333194690,1721933442901,-500.0,0.00013698,2]
[333194691,1721933442910,-500.0,0.00013698,2]
[333194692,1721933442922,-500.0,0.00013698,2]
[333194693,1721933442932,-500.0,0.00013698,2]
[333194694,1721933442941,-500.0,0.00013698,2]
[333194695,1721933442951,-500.0,0.00013698,2]
[333194696,1721933442960,-2119.71,0.00013698,2]
[333194697,1721933442970,-500.0,0.00013698,2]
[333194698,1721933442979,-500.0,0.00013698,2]
[333194699,1721933442989,-500.0,0.00013698,2]
[333194700,1721933442998,-514.27781184,0.00013698,2]
[333194701,1721933443008,-1621.03,0.00013698,2]
[333194702,1721933443018,-775.84,0.00013698,2]
[333194703,1721933443028,-503.80729936,0.00013698,2]
[333194704,1721933443037,-509.97117062,0.00013698,2]
[333194705,1721933443047,-500.0,0.00013698,2]
[333194706,1721933443056,-500.0,0.00013698,2]
[333194707,1721933443066,-1215.24,0.00013698,2]
[333194708,1721933443076,-500.0,0.00013698,2]
[333194709,1721933443086,-500.0,0.00013698,2]
[333194710,1721933443095,-500.0,0.00013698,2]
[333194711,1721933443105,-500.0,0.00013698,2]
[333194712,1721933443114,-500.0,0.00013698,2]
[333194713,1721933443124,-464.35473855,0.00013698,2]
[333194714,1721933443134,-1477.59,0.00013698,2]
[333194716,1721933443143,-1399.47,0.00013698,2]
[333194718,1721933443153,-500.0,0.00013698,2]
[333194720,1721933443163,-500.0,0.00013698,2]
[333194721,1721933443174,-500.0,0.00013698,2]
[333194722,1721933443184,-500.0,0.00013698,2]
[333194723,1721933443193,-501.07300065,0.00013698,2]
[333194724,1721933443202,-500.0,0.00013698,2]
[333194725,1721933443210,-500.0,0.00013698,2]
[333194726,1721933443221,-734.38,0.00013698,2]
[333194728,1721933443230,-500.0,0.00013698,2]
[333194729,1721933443240,-500.0,0.00013698,2]
[333194730,1721933443250,-532.82,0.00013698,2]
[333194731,1721933443259,-500.0,0.00013698,2]
[333194732,1721933443269,-2102.0,0.00013698,2]
[333194733,1721933443278,-1971.47,0.00013698,2]
[333194734,1721933443288,-500.0,0.00013698,2]
[333194735,1721933443297,-502.17267503,0.00013698,2]
[333194736,1721933443307,-500.0,0.00013698,2]
[333194737,1721933443317,-500.0,0.00013698,2]
[333194738,1721933443327,-500.0,0.00013698,2]
[333194739,1721933443336,-512.81,0.00013698,2]
[333194740,1721933443346,-1302.48,0.00013698,2]
[333194741,1721933443355,-500.0,0.00013698,2]
[333194742,1721933443364,-1116.61,0.00013698,2]
[333194743,1721933443374,-500.0,0.00013698,2]
[333194744,1721933443383,-518.93918711,0.00013698,2]
[333194745,1721933443393,-730.51,0.00013698,2]
[333194746,1721933443403,-1200.89,0.00013698,2]
[333194748,1721933443412,-500.0,0.00013698,2]
[333194750,1721933443425,-500.0,0.00013698,2]
[333194752,1721933443435,-500.0,0.00013698,2]
[333194754,1721933443447,-500.0,0.00013698,2]
[333194756,1721933443457,-500.0,0.00013698,2]
[333194757,1721933443467,-500.0,0.00013698,2]
[333194758,1721933443477,-5021.07,0.00013698,2]
[333194759,1721933443487,-500.0,0.00013698,2]
[333194760,1721933443496,-500.0,0.00013698,2]
[333194761,1721933443505,-1015.16,0.00013698,2]
[333194762,1721933443514,-754.27,0.00013698,2]
[333194763,1721933443523,-7433.07,0.00013698,2]
[333194764,1721933443533,-500.0,0.00013698,2]
[333194765,1721933443542,-500.0,0.00013698,2]
[333194766,1721933443555,-500.0,0.00013698,2]
[333194767,1721933443564,-596.74426326,0.00013698,2]
[333194768,1721933443574,-500.0,0.00013698,2]
[333194769,1721933443585,-632.96,0.00013698,2]
[333194770,1721933443596,-650.91,0.00013698,2]
[333194771,1721933443606,-3141.57,0.00013698,2]
[333194772,1721933443616,-500.0,0.00013698,2]
[333194773,1721933443628,-649.52,0.00013698,2]
[333194774,1721933443638,-500.0,0.00013698,2]
[333194775,1721933443647,-500.0,0.00013698,2]
[333194776,1721933443657,-500.0,0.00013698,2]
[333194777,1721933443667,-1404.34,0.00013698,2]
[333194778,1721933443679,-500.0,0.00013698,2]
[333194779,1721933443688,-666.46,0.00013698,2]
[333194780,1721933443699,-782.55,0.00013698,2]
[333194781,1721933443708,-500.0,0.00013698,2]
[333194782,1721933443718,-500.0,0.00013698,2]
[333194783,1721933443729,-500.0,0.00013698,2]
[333194784,1721933443739,-500.0,0.00013698,2]
[333194785,1721933443748,-500.0,0.00013698,2]
[333194786,1721933443758,-719.84,0.00013698,2]
[333194787,1721933443767,-1248.96,0.00013698,2]
[333194788,1721933443777,-1227.43,0.00013698,2]
[333194789,1721933443787,-1031.86,0.00013698,2]
[333194790,1721933443796,-500.0,0.00013698,2]
[333194791,1721933443806,-500.0,0.00013698,2]
[333194792,1721933443815,-500.0,0.00013698,2]
[333194793,1721933443824,-586.52,0.00013698,2]
[333194794,1721933443834,-2334.54,0.00013698,2]
[333194795,1721933443843,-500.0,0.00013698,2]
[333194796,1721933443853,-916.29,0.00013698,2]
[333194797,1721933443862,-500.0,0.00013698,2]
[333194798,1721933443872,-539.56,0.00013698,2]
[333194799,1721933443881,-6295.76,0.00013698,2]
[333194800,1721933443891,-500.0,0.00013698,2]
[333194801,1721933443903,-714.15,0.00013698,2]
[333194802,1721933443913,-808.65,0.00013698,2]
[333194803,1721933443927,-537.5234073,0.00013698,2]
[333194804,1721933443940,-500.0,0.00013698,2]
[333194805,1721933443951,-500.0,0.00013698,2]
[333194806,1721933443963,-500.0,0.00013698,2]
[333194807,1721933443974,-579.40700129,0.00013698,2]
[333194808,1721933443985,-575.96483489,0.00013698,2]
[333194809,1721933443994,-501.47527301,0.00013698,2]
[333194810,1721933444003,-500.0,0.00013698,2]
[333194811,1721933444012,-500.0,0.00013698,2]
[333194812,1721933444021,-500.0,0.00013698,2]
[333194813,1721933444031,-500.0,0.00013698,2]
[333194814,1721933444040,-589.54,0.00013698,2]
[333194815,1721933444050,-500.0,0.00013698,2]
[333194816,1721933444059,-500.0,0.00013698,2]
[333194817,1721933444069,-500.0,0.00013698,2]
[333194818,1721933444078,-500.0,0.00013698,2]
[333194819,1721933444088,-1329.85,0.00013698,2]
[333194820,1721933444097,-1215.36,0.00013698,2]
[333194821,1721933444107,-3654.34,0.00013698,2]
[333194822,1721933444117,-976.13,0.00013698,2]
[333194823,1721933444126,-500.0,0.00013698,2]
[333194824,1721933444135,-500.0,0.00013698,2]
[333194825,1721933444145,-500.0,0.00013698,2]
[333194826,1721933444154,-1207.53,0.00013698,2]
[333194827,1721933444163,-500.0,0.00013698,2]
[333194828,1721933444173,-500.0,0.00013698,2]
[333194829,1721933444182,-1139.42,0.00013698,2]
[333194830,1721933444191,-1309.33,0.00013698,2]
[333194831,1721933444201,-500.0,0.00013698,2]
[333194832,1721933444210,-500.0,0.00013698,2]
[333194833,1721933444219,-998.78,0.00013698,2]
[333194834,1721933444228,-701.75,0.00013698,2]
[333194835,1721933444238,-2047.57,0.00013698,2]
[333194836,1721933444247,-500.0,0.00013698,2]
[333194837,1721933444257,-500.0,0.00013698,2]
[333194838,1721933444266,-500.0,0.00013698,2]
[333194839,1721933444275,-500.0,0.00013698,2]
[333194840,1721933444286,-500.0,0.00013698,2]
[333194841,1721933444296,-500.0,0.00013698,2]
[333194842,1721933444307,-500.0,0.00013698,2]
[333194843,1721933444317,-415.99363718,0.00013698,2]
[333194844,1721933444326,-500.0,0.00013698,2]
[333194845,1721933444336,-121.11412715,0.00013698,2]
[333194846,1721933444513,-499.72085033,0.00013698,2]
[333194847,1721933444522,-500.0,0.00013698,2]
[333194848,1721933444532,-500.0,0.00013698,2]
[333194849,1721933444541,-500.0,0.00013698,2]
[333194850,1721933444553,-500.0,0.00013698,2]
[333194851,1721933444562,-500.0,0.00013698,2]
[333194852,1721933444571,-500.0,0.00013698,2]
[333194853,1721933444580,-500.0,0.00013698,2]
[333194854,1721933444591,-500.0,0.00013698,2]
[333194855,1721933444600,-500.0,0.00013698,2]
[333194856,1721933444609,-500.0,0.00013698,2]
[333194857,1721933444618,-500.0,0.00013698,2]
[333194858,1721933444630,-194.540602,0.00013698,2]
[333194859,1721933444640,-500.0,0.00013698,2]
[333194860,1721933444650,-500.0,0.00013698,2]
[333194861,1721933444659,-500.0,0.00013698,2]
[333194862,1721933444669,-500.0,0.00013698,2]
[333194863,1721933444681,-500.0,0.00013698,2]
[333194864,1721933444690,-446.01385335,0.00013698,2]
[333194865,1721933444852,-500.0,0.00013698,2]
[333194866,1721933444864,-500.0,0.00013698,2]
[333194867,1721933444876,-500.0,0.00013698,2]
[333194868,1721933444886,-500.0,0.00013698,2]
[333194869,1721933444897,-345.91377427,0.00013698,2]
[333194870,1721933444906,-500.0,0.00013698,2]
[333194871,1721933444917,-500.0,0.00013698,2]
[333194872,1721933444930,-500.0,0.00013698,2]
[333194873,1721933444939,-500.0,0.00013698,2]
[333194874,1721933444950,-500.0,0.00013698,2]
[333194875,1721933444961,-1120.09,0.00013698,2]
[333194876,1721933444972,-522.76742559,0.00013698,2]
[333194877,1721933444987,-418.85257441,0.00013698,2]
[333194878,1721933444998,-207.52872312,0.00013698,2]
[333194879,1721933445362,-517.88127688,0.00013698,2]
[333194880,1721933445374,-1569.57,0.00013698,2]
[333194881,1721933445383,-500.0,0.00013698,2]
[333194882,1721933445395,-646.51,0.00013698,2]
[333194883,1721933445405,-542.35604,0.00013699,2]
[333194884,1721933445415,-3000.0,0.00013699,2]
[333194885,1721933445427,-61.27383704,0.0001375,2]
[333194886,1721933445439,-91.72616296,0.0001375,2]
[333194887,1721933445448,-183.02272514,0.00013781,2]
[333194888,1721933445461,-183.02272514,0.00013872,2]
[333194889,1721933445471,-1082.34652536,0.00013872,2]
[333194890,1721933445483,-503.57240317,0.00013972,2]
[333194891,1721933445492,-500.0,0.00013972,2]
[333194892,1721933445502,-500.0,0.00013972,2]
[333194893,1721933445512,-513.97,0.00013972,2]
[333194894,1721933445523,-511.75571667,0.00013972,2]
[333194895,1721933445535,-500.0,0.00013972,2]
[333194896,1721933445546,-500.0,0.00013972,2]
[333194897,1721933445562,-500.0,0.00013972,2]
[333194898,1721933445572,-574.32,0.00013972,2]
[333194899,1721933445582,-500.0,0.00013972,2]
[333194901,1721933445592,-655.2,0.00013972,2]
[333194903,1721933445602,-500.0,0.00013972,2]
[333194904,1721933445611,-500.0,0.00013972,2]
[333194905,1721933445620,-500.0,0.00013972,2]
[333194906,1721933445634,-500.0,0.00013972,2]
[333194907,1721933445644,-500.0,0.00013972,2]
[333194909,1721933445653,-214.97698249,0.00013972,2]
[333194919,1721933446306,-285.02301751,0.00013972,2]
[333194921,1721933446316,-457.81825302,0.00013972,2]
[333194923,1721933446325,-127.1046416,0.00013972,2]
[333194925,1721933446337,-330.29329238,0.00013972,2]
[333194927,1721933446350,-42.60206602,0.00013972,2]
[333194929,1721933446360,-500.0,0.00013972,2]
[333194930,1721933446370,-453.16046934,0.00013972,2]
[333194931,1721933446485,-273.37336231,9.9e-05,2]
[333194932,1721933446494,-88.5312982,0.00013972,2]
[333194933,1721933446503,-500.0,0.00013972,2]
[333194934,1721933446511,-500.0,0.00013972,2]
[333194935,1721933446521,-500.0,0.00013972,2]
[333194936,1721933446530,-918.5,0.00013972,2]
[333194937,1721933446539,-478.55941063,0.00013972,2]
[333194938,1721933446549,-500.0,0.00013972,2]
[333194939,1721933446562,-500.0,0.00013972,2]
[333194940,1721933446572,-500.0,0.00013972,2]
[333194941,1721933446581,-174.65368639,0.00013972,2]
[333194942,1721933446594,-310.73234032,0.00013972,2]
[333194943,1721933484483,-273.37336231,9.9e-05,2]
[333194944,1721933487725,273.37336231,9.9e-05,2]
[333194945,1721933496279,108.25327538,9.9e-05,2]
[333194957,1721934520038,-1894.95955433,9.899e-05,2]
[333194958,1721934520062,-495.69104374,9.9e-05,2]
[333194959,1721934520089,-300.0,9.998e-05,2]
[333194960,1721934520116,-667.22039427,9.999e-05,2]
[333194961,1721934520144,-154.74467129,9.999e-05,2]
[333194962,1721934520167,-247.00525347,9.999e-05,2]
[333194963,1721934520191,-156.514868,9.999e-05,2]
[333194964,1721934520215,-359.45030284,9.999e-05,2]
[333194965,1721934520239,-155.01062865,9.999e-05,2]
[333194966,1721934520263,-155.01343581,9.999e-05,2]
[333194967,1721934520290,-347.0,0.00010998,2]
[333194968,1721934520315,-24900.0,0.00011983,2]
[333194969,1721934527745,273.37336231,9.9e-05,2]
[333194970,1721934535800,273.37336231,9.9e-05,2]
[333194971,1721934544696,273.37336231,9.9e-05,2]
[333194972,1721934552720,273.37336231,9.9e-05,2]
[333194973,1721934562362,273.37336231,9.9e-05,2]
[333194974,1721934570261,273.37336231,9.9e-05,2]
[333194975,1721934578542,273.37336231,9.9e-05,2]
[333194976,1721934586323,273.37336231,9.9e-05,2]
[333194977,1721934595662,273.37336231,9.9e-05,2]
[333194978,1721934604192,273.37336231,9.9e-05,2]
[333194979,1721934609567,227.46441562,9.999e-05,2]
[333194980,1721934612798,273.37336231,9.9e-05,2]
[333194981,1721934620426,273.37336231,9.9e-05,2]
[333194982,1721934628499,273.37336231,9.9e-05,2]
[333195137,1721934636418,273.37336231,9.9e-05,2]
[333195167,1721934639827,-166.324813,0.00012558,2]
[333195169,1721934639837,-166.324813,0.00012623,2]
[333195171,1721934639847,-166.324813,0.00012688,2]
[333195173,1721934639856,-166.324813,0.00012754,2]
[333195175,1721934639866,-166.324813,0.00012819,2]
[333195177,1721934639875,-166.324813,0.00012885,2]
[333195178,1721934639885,-166.324813,0.0001295,2]
[333195179,1721934639899,-166.324813,0.00013016,2]
[333195180,1721934639908,-166.324813,0.00013081,2]
[333195181,1721934639918,-166.324813,0.00013146,2]
[333195182,1721934639927,-166.324813,0.00013212,2]
[333195183,1721934639936,-200.0,0.00013425,2]
[333195188,1721934640116,-300.0,0.00013597,2]
[333195189,1721934640128,-300.0,0.00013597,2]
[333195190,1721934640138,-2705.51529959,0.00013598,2]
[333195191,1721934640148,-1187.77881195,0.00013598,2]
[333195192,1721934640159,-2305.23397353,0.00013598,2]
[333195193,1721934640169,-258.11335717,0.00013666,2]
[333195194,1721934640179,-93693.79338146,0.00013688,2]
[333195195,1721934640192,-1178.20479994,0.00013688,2]
[333195196,1721934640203,-3114.991,0.00013688,2]
[333195200,1721934640459,-30634.54614307,0.00013688,2]
[333195205,1721934640657,-251095.46191053,0.00013688,2]
[333195206,1721934640667,-271.80768515,0.00013698,2]
[333195207,1721934640677,-500.0,0.00013698,2]
[333195208,1721934640687,-500.0,0.00013698,2]
[333195209,1721934640697,-518.66,0.00013698,2]
[333195210,1721934640707,-500.0,0.00013698,2]
[333195211,1721934640724,-500.0,0.00013698,2]
[333195212,1721934640734,-500.0,0.00013698,2]
[333195213,1721934640744,-500.0,0.00013698,2]
[333195215,1721934640760,-500.0,0.00013698,2]
[333195217,1721934640770,-500.0,0.00013698,2]
[333195218,1721934640779,-500.0,0.00013698,2]
[333195219,1721934640789,-500.0,0.00013698,2]
[333195220,1721934640799,-500.0,0.00013698,2]
[333195221,1721934640808,-500.0,0.00013698,2]
[333195222,1721934640818,-500.0,0.00013698,2]
[333195223,1721934640829,-500.0,0.00013698,2]
[333195224,1721934640839,-500.0,0.00013698,2]
[333195225,1721934640849,-500.0,0.00013698,2]
[333195226,1721934640858,-500.0,0.00013698,2]
[333195227,1721934640868,-500.0,0.00013698,2]
[333195228,1721934640877,-500.0,0.00013698,2]
[333195229,1721934640892,-500.0,0.00013698,2]
[333195230,1721934640902,-2159.85,0.00013698,2]
[333195231,1721934640912,-2159.85,0.00013698,2]
[333195232,1721934640922,-2159.85,0.00013698,2]
[333195233,1721934640933,-2159.85,0.00013698,2]
[333195234,1721934640942,-2159.85,0.00013698,2]
[333195235,1721934640951,-2159.85,0.00013698,2]
[333195236,1721934640962,-2159.85,0.00013698,2]
[333195237,1721934640982,-500.0,0.00013698,2]
[333195238,1721934640991,-2159.85,0.00013698,2]
[333195239,1721934641001,-2159.85,0.00013698,2]
[333195240,1721934641011,-2159.85,0.00013698,2]
[333195241,1721934641021,-2159.85,0.00013698,2]
[333195242,1721934641031,-2159.85,0.00013698,2]
[333195243,1721934641042,-2159.85,0.00013698,2]
[333195244,1721934641051,-2159.85,0.00013698,2]
[333195245,1721934641061,-2159.85,0.00013698,2]
[333195246,1721934641072,-2159.85,0.00013698,2]
[333195247,1721934641082,-2159.85,0.00013698,2]
[333195248,1721934641092,-2159.85,0.00013698,2]
[333195249,1721934641102,-2159.85,0.00013698,2]
[333195250,1721934641112,-2159.85,0.00013698,2]
[333195251,1721934641122,-2159.85,0.00013698,2]
[333195252,1721934641132,-2159.85,0.00013698,2]
[333195253,1721934641142,-2159.85,0.00013698,2]
[333195254,1721934641152,-2159.85,0.00013698,2]
[333195255,1721934641162,-500.0,0.00013698,2]
[333195256,1721934641174,-500.0,0.00013698,2]
[333195257,1721934641184,-500.0,0.00013698,2]
[333195258,1721934641193,-500.0,0.00013698,2]
[333195259,1721934641204,-500.0,0.00013698,2]
[333195260,1721934641217,-500.0,0.00013698,2]
[333195261,1721934641234,-500.0,0.00013698,2]
[333195262,1721934641244,-500.0,0.00013698,2]
[333195263,1721934641254,-500.0,0.00013698,2]
[333195264,1721934641264,-522.52844013,0.00013698,2]
[333195265,1721934641275,-274.12816104,0.00013698,2]
[333195266,1721934641286,-500.0,0.00013698,2]
[333195267,1721934641296,-502.92560103,0.00013698,2]
[333195268,1721934641305,-500.0,0.00013698,2]
[333195269,1721934641316,-500.0,0.00013698,2]
[333195270,1721934641326,-573.72,0.00013698,2]
[333195271,1721934641336,-519.39971363,0.00013698,2]
[333195272,1721934641346,-500.0,0.00013698,2]
[333195273,1721934641356,-500.0,0.00013698,2]
[333195274,1721934641366,-500.0,0.00013698,2]
[333195275,1721934641376,-500.0,0.00013698,2]
[333195276,1721934641386,-600.0,0.00013698,2]
[333195277,1721934641397,-500.0,0.00013698,2]
[333195278,1721934641407,-346.0941936,0.00013698,2]
[333195279,1721934641416,-500.0,0.00013698,2]
[333195280,1721934641427,-1131.76,0.00013698,2]
[333195281,1721934641437,-500.0,0.00013698,2]
[333195282,1721934641447,-500.0,0.00013698,2]
[333195283,1721934641456,-500.0,0.00013698,2]
[333195284,1721934641466,-500.0,0.00013698,2]
[333195285,1721934641477,-500.0,0.00013698,2]
[333195286,1721934641488,-500.0,0.00013698,2]
[333195287,1721934641498,-500.0,0.00013698,2]
[333195288,1721934641509,-500.0,0.00013698,2]
[333195289,1721934641518,-500.0,0.00013698,2]
[333195290,1721934641528,-1054.27,0.00013698,2]
[333195291,1721934641538,-1591.37,0.00013698,2]
[333195292,1721934641550,-386.88779555,0.00013698,2]
[333195293,1721934641560,-506.80398208,0.00013698,2]
[333195294,1721934641571,-523.65,0.00013698,2]
[333195295,1721934641581,-500.0,0.00013698,2]
[333195296,1721934641592,-500.0,0.00013698,2]
[333195297,1721934641602,-500.0,0.00013698,2]
[333195298,1721934641612,-500.0,0.00013698,2]
[333195299,1721934641621,-500.0,0.00013698,2]
[333195300,1721934641630,-500.0,0.00013698,2]
[333195301,1721934641640,-500.0,0.00013698,2]
[333195302,1721934641650,-500.0,0.00013698,2]
[333195303,1721934641660,-507.9968983,0.00013698,2]
[333195304,1721934641670,-500.0,0.00013698,2]
[333195305,1721934641680,-602.29061153,0.00013698,2]
[333195306,1721934641691,-500.0,0.00013698,2]
[333195307,1721934641701,-500.0,0.00013698,2]
[333195308,1721934641711,-500.0,0.00013698,2]
[333195309,1721934641730,-500.0,0.00013698,2]
[333195310,1721934641741,-500.0,0.00013698,2]
[333195311,1721934641751,-500.0,0.00013698,2]
[333195312,1721934641762,-500.0,0.00013698,2]
[333195313,1721934641774,-500.0,0.00013698,2]
[333195314,1721934641784,-500.0,0.00013698,2]
[333195315,1721934641794,-500.0,0.00013698,2]
[333195316,1721934641804,-500.0,0.00013698,2]
[333195317,1721934641813,-500.0,0.00013698,2]
[333195318,1721934641825,-500.0,0.00013698,2]
[333195319,1721934641835,-500.0,0.00013698,2]
[333195320,1721934641847,-500.0,0.00013698,2]
[333195321,1721934641858,-500.0,0.00013698,2]
[333195322,1721934641869,-500.0,0.00013698,2]
[333195323,1721934641879,-500.0,0.00013698,2]
[333195324,1721934641890,-500.0,0.00013698,2]
[333195325,1721934641904,-500.0,0.00013698,2]
[333195326,1721934641914,-500.0,0.00013698,2]
[333195327,1721934641924,-500.0,0.00013698,2]
[333195328,1721934641935,-500.0,0.00013698,2]
[333195329,1721934641944,-500.0,0.00013698,2]
[333195330,1721934641955,-502.23438961,0.00013698,2]
[333195331,1721934641964,-500.0,0.00013698,2]
[333195332,1721934641976,-500.0,0.00013698,2]
[333195333,1721934641986,-500.0,0.00013698,2]
[333195334,1721934641996,-500.0,0.00013698,2]
[333195335,1721934642006,-500.0,0.00013698,2]
[333195336,1721934642015,-500.0,0.00013698,2]
[333195337,1721934642025,-500.0,0.00013698,2]
[333195338,1721934642035,-509.83240982,0.00013698,2]
[333195339,1721934642046,-500.0,0.00013698,2]
[333195340,1721934642056,-503.80729936,0.00013698,2]
[333195341,1721934642066,-592.80057666,0.00013698,2]
[333195342,1721934642076,-981.37,0.00013698,2]
[333195343,1721934642086,-500.0,0.00013698,2]
[333195344,1721934642095,-500.0,0.00013698,2]
[333195345,1721934642105,-500.0,0.00013698,2]
[333195346,1721934642115,-567.09,0.00013698,2]
[333195347,1721934642125,-500.0,0.00013698,2]
[333195348,1721934642135,-500.0,0.00013698,2]
[333195349,1721934642145,-500.0,0.00013698,2]
[333195350,1721934642155,-500.0,0.00013698,2]
[333195351,1721934642165,-500.0,0.00013698,2]
[333195352,1721934642175,-500.0,0.00013698,2]
[333195353,1721934642185,-514.27781184,0.00013698,2]
[333195354,1721934642194,-500.0,0.00013698,2]
[333195355,1721934642204,-500.0,0.00013698,2]
[333195356,1721934642214,-500.0,0.00013698,2]
[333195357,1721934642229,-509.97117062,0.00013698,2]
[333195358,1721934642238,-500.0,0.00013698,2]
[333195359,1721934642247,-500.0,0.00013698,2]
[333195360,1721934642258,-593.71,0.00013698,2]
[333195361,1721934642267,-500.0,0.00013698,2]
[333195362,1721934642276,-500.0,0.00013698,2]
[333195363,1721934642286,-500.0,0.00013698,2]
[333195364,1721934642298,-709.79,0.00013698,2]
[333195365,1721934642308,-500.0,0.00013698,2]
[333195366,1721934642319,-500.0,0.00013698,2]
[333195367,1721934642328,-500.0,0.00013698,2]
[333195368,1721934642338,-500.0,0.00013698,2]
[333195369,1721934642348,-500.0,0.00013698,2]
[333195370,1721934642357,-910.82,0.00013698,2]
[333195371,1721934642368,-740.38,0.00013698,2]
[333195372,1721934642378,-867.12,0.00013698,2]
[333195373,1721934642387,-955.92,0.00013698,2]
[333195374,1721934642398,-501.07300065,0.00013698,2]
[333195375,1721934642408,-500.0,0.00013698,2]
[333195376,1721934642417,-500.0,0.00013698,2]
[333195377,1721934642428,-500.0,0.00013698,2]
[333195378,1721934642438,-500.0,0.00013698,2]
[333195379,1721934642448,-613.97,0.00013698,2]
[333195380,1721934642458,-500.0,0.00013698,2]
[333195381,1721934642471,-500.0,0.00013698,2]
[333195382,1721934642483,-582.77,0.00013698,2]
[333195383,1721934642492,-500.0,0.00013698,2]
[333195384,1721934642503,-500.0,0.00013698,2]
[333195385,1721934642513,-518.93918711,0.00013698,2]
[333195386,1721934642523,-500.0,0.00013698,2]
[333195387,1721934642532,-982.91,0.00013698,2]
[333195388,1721934642543,-599.33,0.00013698,2]
[333195389,1721934642553,-500.0,0.00013698,2]
[333195390,1721934642562,-500.0,0.00013698,2]
[333195391,1721934642572,-650.86,0.00013698,2]
[333195392,1721934642581,-500.0,0.00013698,2]
[333195393,1721934642591,-502.17267503,0.00013698,2]
[333195394,1721934642601,-500.0,0.00013698,2]
[333195395,1721934642611,-1150.56,0.00013698,2]
[333195396,1721934642621,-500.0,0.00013698,2]
[333195397,1721934642630,-500.0,0.00013698,2]
[333195398,1721934642641,-654.96,0.00013698,2]
[333195399,1721934642651,-500.0,0.00013698,2]
[333195400,1721934642661,-510.91,0.00013698,2]
[333195401,1721934642671,-581.88,0.00013698,2]
[333195402,1721934642681,-500.0,0.00013698,2]
[333195403,1721934642691,-500.0,0.00013698,2]
[333195404,1721934642700,-500.0,0.00013698,2]
[333195405,1721934642711,-861.25,0.00013698,2]
[333195406,1721934642723,-500.0,0.00013698,2]
[333195407,1721934642733,-500.0,0.00013698,2]
[333195408,1721934642742,-500.0,0.00013698,2]
[333195409,1721934642751,-500.0,0.00013698,2]
[333195410,1721934642762,-929.14,0.00013698,2]